Cogmind - Beta 15 *** ADVENTURER MODE // 2025.09.10 @ 15:39:58 Player: Sir Cheese Result: Self-destructed Performance ------------- Evolutions (1) 500 Regions Visited (2) 400 Robots Destroyed (19) 95 Value Destroyed (435) 435 Prototype IDs (0) 0 Alien Tech Used (0) 0 Bonus (0) 0 TOTAL SCORE: 1430 Bonus ------- None Cogmind --------- Core Integrity 374/400 Matter 224/300 Energy 310/310 System Corruption 0% Temperature Cool (39) Movement Treading (160) Location -9/Materials Parts ------- > --- POWER (2) -------- Ion Engine Light Nuclear Core > --- PROPULSION (3) --- Light Treads Light Treads > --- UTILITY (2) ------ Large Storage Unit > --- WEAPON (2) ------- Assault Rifle Rocket Launcher > --- INVENTORY (15) --- Light Ion Engine Medium Storage Unit Medium Matter Pod (100) Visual Processing Unit Improved Terrain Scanner Power Shielding Beam Rifle Beam Rifle Assault Rifle Rocket Launcher Mining Laser Peak State ------------ > --- POWER ------------ Ion Engine > --- PROPULSION ------- Light Treads Light Treads > --- UTILITY ---------- Small Storage Unit Improved Terrain Scanner > --- WEAPON ----------- Beam Rifle Assault Rifle > --- INVENTORY -------- Light Ion Engine Medium Matter Pod Power Shielding Small Laser Assault Rifle Rocket Launcher Rocket Launcher Mining Laser [Rating: 11] Favorites ----------- Power Ion Engine Engine Ion Engine Power Core Light Nuclear Core Propulsion Light Treads Treads Light Treads Utility Improved Terrain Scanner Device Improved Terrain Scanner Storage Small Storage Unit Weapon Assault Rifle Energy Gun Beam Rifle Ballistic Gun Assault Rifle Launcher Rocket Launcher Build | -11 -10 -9 ------- Run | Yrd Mat Mat Slots Evolved 2 | . . 2 Power 1 | . . 1 Propulsion 1 | . . 1 Utility . | . . . Weapon . | . . . Parts Attached 13 | 7 4 2 Power 2 | 1 . 1 Engine 1 | 1 . . Core 1 | . . 1 Reactor . | . . . Propulsion 2 | 2 . . Treads 2 | 2 . . Leg . | . . . Wheel . | . . . Hover . | . . . Flight . | . . . Utility 4 | 2 2 . Device 1 | 1 . . Storage 3 | 1 2 . Processor . | . . . Hackware . | . . . Protection . | . . . Artifact . | . . . Weapon 5 | 2 2 1 Energy Gun 1 | . 1 . Energy Cannon . | . . . Ballistic Gun 2 | 2 . . Ballistic Cannon . | . . . Launcher 2 | . 1 1 Special Weapon . | . . . Impact Weapon . | . . . Slashing Weapon . | . . . Piercing Weapon . | . . . Special Melee Weapon . | . . . Unidentified Prototypes . | . . . Parts Lost . | . . . Power . | . . . Propulsion . | . . . Utility . | . . . Weapon . | . . . Highest Loss Streak . | . . . To Critical Strikes . | . . . Average Backups 7 | 1 7 10 Power . | . 1 1 Propulsion . | . . . Utility 2 | . 2 4 Weapon 3 | . 4 5 Tool/Special . | . . . Unused Backups 9 | . 2 7 Power 1 | . . 1 Propulsion . | . . . Utility 3 | . . 3 Weapon 5 | . 2 3 Tool/Special . | . . . Average Slot Usage (%) 93 | . 99 77 Engine 13 | . 14 11 Treads 26 | . 28 22 Device 12 | . 14 9 Storage 13 | . 14 11 Energy Gun 9 | . 9 9 Ballistic Gun 15 | . 17 11 Peak Build Rating 11 | 9 11 11 Average Rating 9 | 4 10 10 On Entrance 6 | . 9 11 Naked Turns . | . . . Heaviest Build 36 | 15 31 36 Greatest Support 40 | 40 40 40 Greatest Overweight (x) . | . . . Average Overweight (x) . | . . . Largest Inventory Capacity 15 | 8 15 15 Average Capacity 10 | 7 9 15 Most Carried 12 | 4 10 12 Average Carried 7 | 1 7 10 Final Capacity 15 | 8 15 15 Final Carried 11 | 3 10 11 Class Distribution -------------------- 100% | Mutant Dominant Class ---------------- Mutant | -10/Materials Mutant | -9/Materials Resources | -11 -10 -9 ----------- Run | Yrd Mat Mat Matter Collected 568 | 227 170 171 Remotely . | . . . Salvage Created 506 | 124 134 248 Parts 35 | 10 8 17 Haulers Intercepted . | . . . Recyclers Shooed . | . . . Parts Field Recycled . | . . . Retrieved Matter . | . . . Parts Self-Destructed . | . . . Prevented . | . . . Kills | -11 -10 -9 ------- Run | Yrd Mat Mat Combat Hostiles Destroyed 10 | . 4 6 Guns 7 | . 3 4 AOE 3 | . 1 2 Classes Destroyed 8 | 3 3 2 Worker 3 | 2 . 1 Tunneler 2 | 2 . . Recycler 1 | 1 . . Operator 1 | . . 1 Watcher 2 | . 1 1 Swarmer 1 | . 1 . Grunt 7 | . 3 4 Sentry 2 | . . 2 Best Kill Streak 5 | 3 3 5 Combat Bots Only 4 | . 3 4 Max Kills in Single Turn 1 | 1 1 1 Gunslinging . | . . . Exploded 1 | . 1 1 Melee . | . . . Uniques/NPCs Destroyed . | . . . Combat | -11 -10 -9 -------- Run | Yrd Mat Mat Hostile Shots Fired 57 | . 21 36 Missed 15 | . 6 9 Hits 42 | . 15 27 Projectile 42 | . 15 27 Damage Taken 426 | . 144 282 Core 56 | . 30 26 Absorbed by Shields . | . . . Ignored by Resistances 127 | . 45 82 Core Remaining (%) 94 | 100 88 . Volleys Fired 41 | 8 15 18 Largest 2 | 2 2 2 Hottest 76 | 40 76 76 Shots Fired 79 | 16 27 36 Gun 74 | 16 26 32 Cannon . | . . . Launcher 5 | . 1 4 Special . | . . . Kinetic 55 | 16 21 18 Thermal 19 | . 5 14 Explosive 5 | . 1 4 Electromagnetic . | . . . Robot Hit Streak 19 | 8 19 8 Robot Miss Streak 2 | 1 2 2 Penetration Max . | . . . Secondary Targets 2 | . . 2 Max Gunslinging Chain 1 | . . 1 Shots Hit Robots 64 | 13 20 31 Core Hits 35 | 6 11 18 Critical Kills 1 | . 1 . Critical Parts Destroyed 1 | . 1 . Critical Strikes 2 | . 2 . Destroy 2 | . 2 . Melee Attacks . | . . . Impact . | . . . Slashing . | . . . Piercing . | . . . Sneak Attacks . | . . . Combat Hostiles . | . . . Follow-up Attacks . | . . . Damage Inflicted 1015 | 166 310 539 Guns 771 | 166 244 361 Cannons . | . . . Explosions 243 | . 65 178 Melee . | . . . Ramming 1 | . 1 . Kinetic 552 | 166 186 200 Thermal 219 | . 58 161 Explosive 243 | . 65 178 Electromagnetic . | . . . Impact . | . . . Slashing . | . . . Piercing . | . . . Highest Corruption . | . . . Average Corruption . | . . . Corruption Purged . | . . . Corruption Blocked . | . . . Overload Shots . | . . . Overflow Damage . | . . . Projectiles . | . . . Explosions . | . . . Melee . | . . . Knockbacks . | . . . Impact . | . . . Kinetic . | . . . Secondary . | . . . Self-Inflicted Damage 6 | . . 6 Shots 1 | . . 1 Rammed 1 | . 1 . Targets Rammed 1 | . 1 . Kicked . | . . . Crushed . | . . . Highest Temperature 69 | . 30 69 Average Temperature 26 | . 11 32 Received Heat Transfer 240 | . 102 138 Siege Activations . | . . . Martial Activations . | . . . Shielding Activations . | . . . Robots Disrupted . | . . . Combat Hostiles . | . . . Robots Corrupted . | . . . Combat Hostiles . | . . . Parts Fried . | . . . Impact Corruptions . | . . . Robots Melted . | . . . Combat Hostiles . | . . . Parts Melted . | . . . Heat Transferred 555 | . 148 407 Parts Sabotaged . | . . . Parts Stolen . | . . . Parts Stripped . | . . . Power Chain Reactions . | . . . Alert | -11 -10 -9 ------- Run | Yrd Mat Mat Maximum Alert Level . | . . . Low Security (%) 100 | 100 100 100 Level 1 . | . . . Level 2 . | . . . Level 3 . | . . . Level 4 . | . . . Level 5 . | . . . High Security . | . . . Max Security . | . . . Peak Influence 146 | 10 106 146 Initial . | . . . Average 25 | . 31 26 Influence Increases 371 | 25 155 191 Destroy 0b10 Robot/C 200 | . 80 120 Destroy 0b10 Robot/NC 45 | 25 5 15 Destroy Leader 64 | . 22 42 Successful Hack 12 | . 12 . Destroy Structure 20 | . 6 14 Lose Combat Pursuer 30 | . 30 . Influence Decreases 225 | 25 155 45 Time Decay 225 | 25 155 45 Squads Dispatched 2 | . 1 1 Investigation 1 | . 1 . Extermination . | . . . Reinforcement 1 | . . 1 Assault . | . . . Garrison . | . . . Intercept . | . . . Searches Triggered . | . . . Construction Impeded . | . . . Haulers Reinforced . | . . . Active Scanning Responses . | . . . Cargo Convoy Interrupts . | . . . Stealth | -11 -10 -9 --------- Run | Yrd Mat Mat Distress Signals . | . . . Communications Jammed . | . . . Distress Signals . | . . . Times Spotted 19 | . 10 9 Peak Tracking Total 5 | . 5 3 Tactical Retreats 1 | . 1 . Traps | -11 -10 -9 ------- Run | Yrd Mat Mat Traps Triggered 1 | . 1 . Indirectly . | . . . Trap Hack Attempts . | . . . Triggered . | . . . Disarmed . | . . . Reprogrammed . | . . . Reused . | . . . Traps Extracted . | . . . Installed . | . . . Triggered . | . . . Machines | -11 -10 -9 ---------- Run | Yrd Mat Mat Machines Disabled . | . . . Max in Single Turn . | . . . Machines Repaired . | . . . Machines Dismantled . | . . . Machines Sabotaged . | . . . Overloaded Fab Kills . | . . . Hacking | -11 -10 -9 --------- Run | Yrd Mat Mat Machines Accessed 4 | . 3 1 Terminals 4 | . 3 1 Fabricators . | . . . Repair Stations . | . . . Recycling Units . | . . . Scanalyzers . | . . . Garrison Access . | . . . Total Hacks 23 | . 15 8 Successful 10 | . 7 3 Failed 13 | . 8 5 Catastrophic 1 | . 1 . Database Lockouts . | . . . Manual 16 | . 12 4 Terminals 23 | . 15 8 Fabricators . | . . . Repair Stations . | . . . Recycling Units . | . . . Scanalyzers . | . . . Garrison Access . | . . . Terminal Hacks 3 | . 2 1 Record 1 | . 1 . Alert Level 1 | . 1 . Zone Layout 1 | . . 1 Fabricator Hacks . | . . . Repair Station Hacks . | . . . Recycling Unit Hacks . | . . . Scanalyzer . | . . . Garrison Access Hacks . | . . . Unauthorized Hacks 7 | . 5 2 Terminals 7 | . 5 2 Assimilate 3 | . 2 1 Botnet 4 | . 3 1 Fabricators . | . . . Repair Stations . | . . . Recycling Units . | . . . Scanalyzers . | . . . Garrison Access . | . . . Data Cores Recovered . | . . . Used . | . . . Hacking Detections 4 | . 3 1 Full Trace Events . | . . . Feedback Events . | . . . Feedback Blocked . | . . . Robot Schematics Acquired . | . . . Robots Built . | . . . Authchips . | . . . Time . | . . . Total Robot Build Rating . | . . . Part Schematics Acquired . | . . . Parts Built . | . . . Authchips . | . . . Time . | . . . Total Part Build Rating . | . . . Parts Repaired . | . . . Time . | . . . Parts Recycled . | . . . Recycled Matter . | . . . Retrieved Matter . | . . . Retrieved Components . | . . . Parts Scanalyzed . | . . . Part Schematics Acquired . | . . . Parts Damaged . | . . . Bothacking | -11 -10 -9 ------------ Run | Yrd Mat Mat Used RIF Installer . | . . . Robots Hacked . | . . . Non-combat . | . . . Combat . | . . . Robot Hacks Applied . | . . . Relay Couplers Released . | . . . Fabnet Peak Effective % . | . . . Robots Rewired . | . . . Allies Hacked . | . . . Hacks Repelled . | . . . Allies | -11 -10 -9 -------- Run | Yrd Mat Mat Total Allies . | . . . Largest Group . | . . . Highest-Rated Group . | . . . Highest-Rated Ally . | . . . Total Orders . | . . . Ally Attacks . | . . . Total Damage . | . . . Kills . | . . . Allies Corrupted . | . . . Allies Melted . | . . . Intel | -11 -10 -9 ------- Run | Yrd Mat Mat Active Infowar (turns) 675 | 2 497 176 Terrain 675 | 2 497 176 Robot Analysis Total . | . . . Derelict Logs Recovered . | . . . Drone Launches . | . . . Drone Recoveries . | . . . Exploration | -11 -10 -9 ------------- Run | Yrd Mat Mat Turns Passed 818 | 123 497 198 Spaces Moved 410 | 55 268 87 Core 4 | 4 . . Treads 406 | 51 268 87 Legs . | . . . Wheels . | . . . Hover . | . . . Flight . | . . . Fastest Speed 50 | 50 160 160 Average Speed 158 | 152 160 160 Slowest Speed 160 | 160 160 160 Overloaded Moves . | . . . Propulsion Burnouts . | . . . Robots Hopped . | . . . Potential Cave-ins . | . . . Cave-ins Triggered . | . . . Exploration Rate (%) 15 | 5 32 10 Regions Visited 2 Branch Regions . Pre-discovered Areas . | . . . Known Exits Taken . | . . . Unknown Exits Taken 2 | 1 1 . Scrap Searched . | . . . Spaces Dug . | . . . Terrain Destroyed 35 | . 5 30 Melee . | . . . Projectile . | . . . AOE 35 | . 5 30 Terrain Rammed . | . . . Walls Destroyed . | . . . Machines Disabled . | . . . Actions | -11 -10 -9 --------- Run | Yrd Mat Mat Total 498 | 79 310 109 Wait 8 | . 8 . Move 408 | 54 267 87 Hop . | . . . Pick Up 21 | 10 10 1 Fast Attach 1 | . 1 . Attach 8 | 7 . 1 Detach 1 | . . 1 Swap 4 | . 3 1 Drop 5 | . 5 . Fire 41 | 8 15 18 Melee . | . . . Ram . | . . . Kick . | . . . Crush 1 | . 1 . Escape Stasis . | . . . Rewire . | . . . Trap . | . . . Miscellaneous . | . . . Route ------- -11/Scrapyard -10/Materials -9/Materials History --------- Turn | Location | Event 9 | -11/Scrapyard | Discovered new exit (range 16) 124 | -11/Scrapyard | Entered Materials 309 | -10/Materials | Build established: Mutant 435 | -10/Materials | Discovered new exit (range 16) 621 | -10/Materials | Entered another Materials area 621 | -9/Materials | Evolved 2 slots: Power x1, Propulsion x1 819 | -9/Materials | Self-destructed Last Messages --------------- K-01 Serf collects debris. G-34 Mercenary destroyed. Switching to secondary target: G-34 Mercenary. K-01 Serf collects debris. G-34 Mercenary destroyed. Switching to secondary target: G-34 Mercenary. K-01 Serf collects debris. K-01 Serf destroyed. G-34 Mercenary destroyed. Acquired 74 matter. Acquired 39 matter. Acquired 48 matter. Acquired Lgt. Nuclear Core. R-06 Scavenger collects Particle Gun. R-06 Scavenger collects Aluminum Leg. Y-45 Defender destroyed. The unstable cave ceiling collapses. W-16 Scout destroyed. The unstable cave ceiling collapses. Y-45 Defender destroyed. Map ----- +----------------------------------------------------+ | ????????????????????????????????????????????????? | | ????????????????????????????????????????????????? | | ????????????????????????????????????????????????? | | ????????????????????????????????????????????????? | | ????????????????????????????????????????????????? | | ????????????????????????????????????????????????? | | ????????????????????????????????????????????????? | | ????????????????????????????????????????????????? | | ????????????????????????????????????????????????? | | ????????????????????????????????????????????????? | | ?????????????????????## ##??????????????????????? | | ????????????????????# #?????????????????????? | | ????????????????????# ??????????????????????? | | ????????????????????# ??????????????????????? | | ????????????????????# ??????????????????????? | | ????????????????????# ??????????????????????? | | ?????????????????#### ###????????????????????? | | ?????????????????#[[ ##???????????????????? | | ?????????????????#[[ = ##??????????????????? | | ?????????????????#! #??????????????????? | | ?????????#???????#!! % #???????????????????? | | ?????????????????#! =% #?###???????????????? | | ???????????#????#?!! # [[#???????????????? | | ?????????????#?????# # [[#?? ????????????? | | ????????????????????# # !!#???????????????? | | ????????????##?#???#?# @ !!#??????? ???????? | | ?????????????????????#%###### !!#???????#??#????? | | ?????????????????????#=#????? !!#???????????????? | | ?????###############?# #??#########??#??????????? | | ?????# # #?#!#??# ##??????#? ????? | | ?????# # #?# #??# """ #??#??#????????? | | ?????# # """ #?#=#??# """ #?? ? ????????? | | ?????## ## """"" ###*#### """ #??? ??????????? | | ####### ## """"" " ##%=* # #?? ???????????? | | # # ## """"" T ##*! # """ #?? ???????????? | | # # ## """ " ## " + """ #??????????????? | | # # ## ## # """ #??????????#???? | | # # ######+###### # ##??#?#?#??????? | | # # ##""" #??????????????? | | # + * ##"R #??????????????? | | # # " = " """"" ##""" #?#????????????? | | # ### T """"""""" ## #?##???????????? | | # #?# " """ """ #########??????????????? | | # ### #??????????????????????? | | # + #????#????#????????????? | | # ###### ##????#????????????????? | | ##############+## ##+######???????????????????? | | ???#????# # # #???????????????????? | | ????????# """ ##### " "" !#??????#??#?????????? | | ???????## """ #???# "R"" #???????#???????????? | +----------------------------------------------------+ Best States ------------- Heat Dissipation 28 Energy Generation 19 Energy Capacity 310 Matter Stores 300 Matter Capacity 300 Sight Range 16 Terrain Scan Range 16 Terrain Scan Density 10 Resistance: KI 20 Resistance: TH 20 Resistance: EX 20 Resistance: EM 20 Resistance: I 20 Resistance: S 20 Resistance: P 20 Evasion (%) 40 Recoil Reduction 2 Offensive Hacking 10 Item Schematics ----------------- None Robot Schematics ------------------ None Fabricated ------------ Nothing Repaired ---------- Nothing Alien Tech Used ----------------- None Achievements -------------- None Challenges ------------ None Game ------ Seed XenonVariableFlightbrick Manual? 0 Play Time 00:09:05 Cumulative 12.2 hours Start 2025.09.10 @ 15:30:41 End 2025.09.10 @ 15:39:58 Sessions 3 Manual Loads 0 Difficulty Adventurer Special Mode None Game No. 12 Rogue 0 Adventurer 5 Explorer 7 Win Type - Total 0 Types 0/0/0/0/0/0/0/0/0/0 Lore% 15 Gallery% 20 Achievement% 23 Wizard Run 0 Options --------- Layout 1 ASCII 0 Keyboard 0 Movement Mouse Keybinds 0 Fullscreen 1 Font 48/Smallcaps Map View 50x35 Zoom Use 0% Tactical HUD 0 Map Filters NONE Filters NONE Steam 1 RUN: 1a525f92-1229-47a2-a4a2-44229a632b8c